fUST/lending_fUST_20250504
["ID","MTS","AMOUNT","RATE_DAILY","PERIOD"]
[359842974,1746368778506,-7.62418668,0.000247,2]
[359842978,1746368834139,-300.0,0.00024798,2]
[359842979,1746368834160,-300.0,0.00024798,2]
[359842980,1746368834182,-1200.0,0.00024798,2]
[359842981,1746368834202,-300.0,0.00024798,2]
[359842982,1746368834224,-329.84706656,0.00024799,2]
[359842983,1746368834258,-500.0,0.00024799,2]
[359842984,1746368834292,-335.59448531,0.00024799,2]
[359842985,1746368834326,-500.0,0.00024799,2]
[359842986,1746368834345,-9733.39424581,0.000248,2]
[359842988,1746368846105,-3783.87487636,0.000248,2]
[359842989,1746368849086,-211.94850064,0.000248,2]
[359842991,1746368872794,8513.35657655,0.00018,2]
[359842992,1746368876823,805.49359654,0.00016,2]
[359842994,1746368907196,651.75588027,0.000176,2]
[359843000,1746368922209,-151.0,0.00022,2]
[359843005,1746368926287,208.34020479,0.00016,2]
[359843006,1746368937942,-750.0,0.00022,2]
[359843007,1746368938530,-151.0,0.00022,2]
[359843008,1746368941605,-269.1111056,0.00022,2]
[359843009,1746368941628,-96.46160224,0.00022,7]
[359843011,1746368945101,-746.61101528,0.00022,7]
[359843012,1746368945124,-300.0,0.00024799,2]
[359843013,1746368945146,-14629.64340677,0.000248,2]
[359843014,1746368947130,-13740.84637335,0.000248,2]
[359843015,1746368951104,-31588.29259707,0.000248,2]
[359843016,1746368951129,-207.3980348,0.00024805,2]
[359843017,1746368951150,-152.0,0.00025486,2]
[359843018,1746368951174,-212.43565453,0.000259,14]
[359843019,1746368951196,-287.0,0.00026869,2]
[359843020,1746368954102,-500.0,0.00027397,2]
[359843021,1746368954124,-349.983269,0.00027397,2]
[359843022,1746368954146,-150.0,0.00027397,3]
[359843023,1746368954167,-873.66932888,0.00029,2]
[359843024,1746368954187,-446.19215005,0.00029,2]
[359843025,1746368954207,-1776.13650023,0.00029447,2]
[359843026,1746368954228,-172.685,0.0003,2]
[359843027,1746368954248,-160.0,0.00030156,2]
[359843028,1746368954268,-1462.0008184,0.00031086,2]
[359843072,1746369031782,-500.0,0.00031781,2]
[359843074,1746369031792,-500.0,0.00032877,2]
[359843076,1746369031802,-349.983269,0.00033165,2]
[359843078,1746369031816,-230.8929466,0.00036366,15]
[359843080,1746369031826,-3193.39632502,0.00036367,2]
[359843082,1746369031835,-504.0,0.000365,30]
[359843084,1746369031844,-212.43565451,0.000369,35]
[359843086,1746369031854,-400.0,0.00037357,2]
[359843088,1746369031863,-150.0,0.000379,2]
[359843090,1746369031873,-307.7990971,0.00037922,4]
[359843091,1746369031883,-679.26111411,0.00037999,9]
[359843092,1746369031892,-362.2865337,0.00038,30]
[359843093,1746369031902,-362.2865337,0.00038,30]
[359843094,1746369031911,-362.2865337,0.00038,30]
[359843095,1746369031921,-361.5737205,0.00038,30]
[359843096,1746369031930,-159.62418663,0.000387,2]
[359843097,1746369031940,-215.58018107,0.00038722,2]
[359843098,1746369031950,-215.58018107,0.00038743,2]
[359843099,1746369031959,-215.58018107,0.00038763,2]
[359843100,1746369031969,-1931.97821002,0.00038781,3]
[359843101,1746369031981,-1462.00081845,0.00038781,3]
[359843102,1746369031992,-250.05074399,0.00038781,3]
[359843103,1746369032004,-8377.67385123,0.00038781,3]
[359843120,1746369037864,-4497.19962661,0.00038781,3]
[359843121,1746369037875,-215.58018107,0.00038784,2]
[359843122,1746369037885,-999.0,0.0003879,120]
[359843123,1746369037895,-140618.37643979,0.00038791,2]
[359843124,1746369037905,-10337.0,0.000388,30]
[359843125,1746369037915,-215.58018107,0.00038804,2]
[359843126,1746369037925,-306.749278,0.00038822,30]
[359843127,1746369037934,-5506.30108344,0.00038863,3]
[359843129,1746369037944,-500.0,0.00038873,5]
[359843131,1746369037954,-432.27088098,0.00038873,5]
[359843133,1746369037964,-500.0,0.00038873,5]
[359843135,1746369037974,-505.67184414,0.00038873,5]
[359843137,1746369037986,-500.0,0.00038873,5]
[359843139,1746369037996,-16518.9032503,0.00038881,3]
[359843141,1746369038006,-5506.30108344,0.00038884,3]
[359843143,1746369038015,-2806.03931655,0.00038891,2]
[359843146,1746369038025,-138151.7124075,0.00038891,2]
[359843149,1746369038035,-222.4738,0.00038893,3]
[359843151,1746369038044,-1086.77613851,0.00038894,3]
[359843153,1746369038053,-55063.0108344,0.00038894,3]
[359843154,1746369038064,-400.0,0.00038904,15]
[359843155,1746369038075,-400.0,0.00038904,15]
[359843156,1746369038085,-400.0,0.00038904,15]
[359843157,1746369038096,-500.0,0.00038904,15]
[359843158,1746369038107,-400.0,0.00038904,15]
[359843159,1746369038117,-500.0,0.00038904,15]
[359843160,1746369038127,-400.0,0.00038904,15]
[359843161,1746369038136,-335.77616446,0.00038904,15]
[359843162,1746369038146,-400.0,0.00038904,15]
[359843163,1746369038155,-400.0,0.00038904,15]
[359843164,1746369038165,-400.0,0.00038904,15]
[359843165,1746369038175,-400.0,0.00038904,15]
[359843166,1746369038316,-400.0,0.00038904,15]
[359843167,1746369038326,-500.0,0.00038904,15]
[359843168,1746369038335,-510.03668428,0.00038904,15]
[359843169,1746369038345,-400.0,0.00038904,15]
[359843170,1746369038355,-500.0,0.00038904,15]
[359843171,1746369038363,-400.0,0.00038904,15]
[359843172,1746369038372,-400.0,0.00038904,15]
[359843173,1746369038381,-400.0,0.00038904,15]
[359843174,1746369038391,-400.0,0.00038904,15]
[359843175,1746369038400,-400.0,0.00038904,15]
[359843176,1746369038409,-400.0,0.00038904,15]
[359843177,1746369038419,-400.0,0.00038904,15]
[359843178,1746369038431,-400.0,0.00038904,15]
[359843179,1746369038441,-400.0,0.00038904,15]
[359843180,1746369038451,-400.0,0.00038904,15]
[359843181,1746369038460,-400.0,0.00038904,15]
[359843182,1746369038470,-522.52543955,0.00038904,15]
[359843183,1746369038479,-400.0,0.00038904,15]
[359843184,1746369038490,-400.0,0.00038904,15]
[359843185,1746369038501,-400.0,0.00038904,15]
[359843186,1746369038512,-300.0,0.00038904,15]
[359843187,1746369038522,-400.0,0.00038904,15]
[359843188,1746369038533,-507.98153235,0.00038904,15]
[359843189,1746369038543,-400.0,0.00038904,15]
[359843190,1746369038554,-400.0,0.00038904,15]
[359843191,1746369038564,-400.0,0.00038904,15]
[359843192,1746369038573,-367.54,0.00038904,15]
[359843193,1746369038582,-400.0,0.00038904,15]
[359843194,1746369038592,-400.0,0.00038904,15]
[359843195,1746369038601,-400.0,0.00038904,15]
[359843196,1746369038610,-400.0,0.00038904,15]
[359843197,1746369038620,-504.09797591,0.00038904,15]
[359843198,1746369038629,-400.0,0.00038904,15]
[359843199,1746369038639,-400.0,0.00038904,15]
[359843200,1746369038648,-433.6,0.00038904,15]
[359843201,1746369038657,-400.0,0.00038904,15]
[359843202,1746369038667,-400.0,0.00038904,15]
[359843203,1746369038676,-400.0,0.00038904,15]
[359843204,1746369038685,-500.0,0.00038904,15]
[359843205,1746369038694,-500.0,0.00038904,15]
[359843206,1746369038703,-500.0,0.00038904,15]
[359843207,1746369038713,-400.0,0.00038904,15]
[359843208,1746369038722,-1000.0,0.00038904,15]
[359843209,1746369038731,-400.0,0.00038904,15]
[359843210,1746369038741,-400.0,0.00038904,15]
[359843211,1746369038750,-500.0,0.00038904,15]
[359843212,1746369038761,-500.0,0.00038904,15]
[359843213,1746369038770,-508.37697616,0.00038904,15]
[359843214,1746369038780,-400.0,0.00038904,7]
[359843215,1746369038789,-501.65230332,0.00038904,15]
[359843216,1746369038798,-400.0,0.00038904,15]
[359843217,1746369038807,-500.0,0.00038904,15]
[359843218,1746369038822,-501.0612214,0.00038904,15]
[359843219,1746369038831,-500.0,0.00038904,15]
[359843220,1746369038841,-400.0,0.00038904,15]
[359843221,1746369038851,-500.0,0.00038904,15]
[359843222,1746369038862,-500.0,0.00038904,15]
[359843223,1746369038872,-500.93762861,0.00038904,15]
[359843224,1746369038882,-502.96567269,0.00038904,15]
[359843225,1746369038894,-500.0,0.00038904,15]
[359843226,1746369038904,-400.0,0.00038904,15]
[359843227,1746369038914,-400.0,0.00038904,15]
[359843228,1746369038924,-504.01718018,0.00038904,15]
[359843229,1746369038934,-500.91987735,0.00038904,15]
[359843230,1746369038944,-400.0,0.00038904,15]
[359843231,1746369038954,-400.0,0.00038904,15]
[359843232,1746369038963,-400.0,0.00038904,15]
[359843233,1746369038973,-400.0,0.00038904,15]
[359843234,1746369038983,-503.40331968,0.00038904,15]
[359843235,1746369038992,-526.70631053,0.00038904,15]
[359843236,1746369039002,-400.0,0.00038904,15]
[359843237,1746369039011,-500.0,0.00038904,15]
[359843238,1746369039021,-501.16058126,0.00038904,15]
[359843239,1746369039031,-400.0,0.00038904,15]
[359843240,1746369039040,-505.19891667,0.00038904,15]
[359843241,1746369039050,-400.0,0.00038904,15]
[359843242,1746369039059,-420.07,0.00038904,15]
[359843243,1746369039068,-400.0,0.00038904,15]
[359843244,1746369039078,-500.0,0.00038904,15]
[359843245,1746369039087,-400.0,0.00038904,15]
[359843246,1746369039098,-500.0,0.00038904,15]
[359843247,1746369039108,-400.0,0.00038904,15]
[359843248,1746369039118,-501.09567472,0.00038904,15]
[359843249,1746369039127,-500.0,0.00038904,15]
[359843250,1746369039136,-400.0,0.00038904,15]
[359843251,1746369039146,-400.0,0.00038904,15]
[359843252,1746369039155,-153.6,0.00038904,15]
[359843253,1746369039165,-500.0,0.00038904,15]
[359843254,1746369039174,-500.0,0.00038904,15]
[359843255,1746369039183,-500.0,0.00038904,15]
[359843256,1746369039192,-400.0,0.00038904,15]
[359843257,1746369039201,-434.14,0.00038904,15]
[359843258,1746369039210,-442.38670019,0.00038904,15]
[359843259,1746369039220,-400.0,0.00038904,15]
[359843260,1746369039229,-400.0,0.00038904,15]
[359843261,1746369039239,-500.0,0.00038904,15]
[359843262,1746369039248,-400.0,0.00038904,15]
[359843263,1746369039257,-500.0,0.00038904,15]
[359843264,1746369039267,-500.0,0.00038904,15]
[359843265,1746369039276,-500.0,0.00038904,15]
[359843266,1746369039286,-500.0,0.00038904,15]
[359843267,1746369039296,-513.81692754,0.00038904,15]
[359843268,1746369039305,-500.0,0.00038904,15]
[359843269,1746369039314,-500.0,0.00038904,15]
[359843270,1746369039324,-503.78771177,0.00038904,15]
[359843271,1746369039334,-500.0,0.00038904,15]
[359843272,1746369039343,-500.0,0.00038904,15]
[359843273,1746369039352,-500.0,0.00038904,15]
[359843274,1746369039363,-500.0,0.00038904,15]
[359843275,1746369039372,-400.0,0.00038904,15]
[359843276,1746369039381,-523.25616664,0.00038904,15]
[359843277,1746369039391,-400.0,0.00038904,15]
[359843278,1746369039401,-400.0,0.00038904,15]
[359843279,1746369039411,-500.0,0.00038904,15]
[359843280,1746369039420,-400.0,0.00038904,15]
[359843281,1746369039429,-400.0,0.00038904,15]
[359843282,1746369039439,-500.0,0.00038904,15]
[359843283,1746369039449,-400.0,0.00038904,15]
[359843284,1746369039458,-500.0,0.00038904,15]
[359843285,1746369039467,-500.0,0.00038904,15]
[359843286,1746369039477,-504.78280144,0.00038904,15]
[359843287,1746369039486,-500.0,0.00038904,15]
[359843288,1746369039496,-509.07997249,0.00038904,15]
[359843289,1746369039506,-400.0,0.00038904,15]
[359843290,1746369039515,-400.0,0.00038904,15]
[359843291,1746369039525,-400.0,0.00038904,15]
[359843292,1746369039534,-500.0,0.00038904,15]
[359843293,1746369039544,-400.0,0.00038904,15]
[359843294,1746369039553,-500.0,0.00038904,15]
[359843295,1746369039562,-503.89200455,0.00038904,15]
[359843296,1746369039571,-500.0,0.00038904,15]
[359843297,1746369039581,-432.44194886,0.00038904,15]
[359843298,1746369039590,-500.0,0.00038904,15]
[359843299,1746369039599,-178.41087331,0.00038904,15]
[359843300,1746369039609,-400.0,0.00038904,15]
[359843302,1746369039618,-400.0,0.00038904,15]
[359843303,1746369039627,-400.0,0.00038904,15]
[359843304,1746369039637,-400.0,0.00038904,15]
[359843305,1746369039648,-400.0,0.00038904,15]
[359843306,1746369039658,-400.0,0.00038904,15]
[359843307,1746369039668,-400.0,0.00038904,15]
[359843308,1746369039678,-413.59,0.00038904,15]
[359843309,1746369039689,-500.0,0.00038904,15]
[359843310,1746369039699,-400.0,0.00038904,15]
[359843311,1746369039708,-335.16665868,0.00038904,15]
[359843312,1746369039717,-400.0,0.00038904,15]
[359843313,1746369039727,-400.0,0.00038904,15]
[359843314,1746369039737,-400.0,0.00038904,15]
[359843315,1746369039747,-400.0,0.00038904,15]
[359843316,1746369039756,-400.0,0.00038904,15]
[359843317,1746369039765,-400.0,0.00038904,15]
[359843319,1746369039775,-400.0,0.00038904,15]
[359843320,1746369039784,-400.0,0.00038904,15]
[359843321,1746369039793,-400.0,0.00038904,15]
[359843322,1746369039812,-400.0,0.00038904,15]
[359843323,1746369039824,-400.0,0.00038904,15]
[359843324,1746369039833,-291.95704008,0.00038904,15]
[359843325,1746369039843,-549.46108759,0.00038904,15]
[359843326,1746369039852,-400.0,0.00038904,15]
[359843328,1746369039862,-400.0,0.00038904,15]
[359843330,1746369039873,-378.47321506,0.00038904,15]
[359843332,1746369039883,-400.0,0.00038904,15]
[359843334,1746369039894,-400.0,0.00038904,15]
[359843336,1746369039904,-400.0,0.00038904,15]
[359843338,1746369039914,-400.0,0.00038904,15]
[359843340,1746369039923,-500.0,0.00038904,15]
[359843342,1746369039934,-400.0,0.00038904,15]
[359843344,1746369039943,-400.0,0.00038904,15]
[359843346,1746369039953,-400.0,0.00038904,15]
[359843348,1746369039963,-400.0,0.00038904,15]
[359843350,1746369039973,-400.0,0.00038904,15]
[359843352,1746369039983,-400.0,0.00038904,15]
[359843354,1746369039992,-400.0,0.00038904,15]
[359843356,1746369040003,-400.0,0.00038904,15]
[359843358,1746369040013,-500.0,0.00038904,15]
[359843360,1746369040022,-506.08208493,0.00038904,15]
[359843362,1746369040032,-400.0,0.00038904,15]
[359843364,1746369040042,-400.0,0.00038904,15]
[359843367,1746369040052,-400.0,0.00038904,15]
[359843369,1746369040062,-227.25,0.00038904,15]
[359843371,1746369040071,-400.0,0.00038904,15]
[359843373,1746369040081,-400.0,0.00038904,15]
[359843375,1746369040090,-400.0,0.00038904,15]
[359843377,1746369040100,-400.0,0.00038904,15]
[359843379,1746369040109,-400.0,0.00038904,15]
[359843381,1746369040119,-502.74692449,0.00038904,15]
[359843383,1746369040128,-400.0,0.00038904,15]
[359843385,1746369040138,-400.0,0.00038904,15]
[359843387,1746369040147,-400.0,0.00038904,15]
[359843389,1746369040158,-400.0,0.00038904,15]
[359843391,1746369040167,-400.0,0.00038904,15]
[359843393,1746369040177,-400.0,0.00038904,15]
[359843395,1746369040187,-400.0,0.00038904,5]
[359843397,1746369040197,-400.0,0.00038904,15]
[359843399,1746369040208,-400.0,0.00038904,15]
[359843401,1746369040218,-400.0,0.00038904,15]
[359843403,1746369040227,-400.0,0.00038904,15]
[359843405,1746369040236,-400.0,0.00038904,15]
[359843407,1746369040246,-400.0,0.00038904,15]
[359843409,1746369040255,-400.0,0.00038904,15]
[359843411,1746369040265,-300.38436922,0.00038904,15]
[359843413,1746369040275,-400.0,0.00038904,15]
[359843415,1746369040284,-400.0,0.00038904,15]
[359843417,1746369040293,-500.0,0.00038904,15]
[359843419,1746369040303,-400.0,0.00038904,15]
[359843421,1746369040312,-400.0,0.00038904,15]
[359843423,1746369040322,-400.0,0.00038904,15]
[359843425,1746369040331,-400.0,0.00038904,15]
[359843427,1746369040341,-400.0,0.00038904,15]
[359843429,1746369040350,-400.0,0.00038904,15]
[359843431,1746369040360,-400.0,0.00038904,15]
[359843433,1746369040371,-400.0,0.00038904,15]
[359843435,1746369040380,-400.0,0.00038904,15]
[359843437,1746369040390,-400.0,0.00038904,15]
[359843439,1746369040399,-400.0,0.00038904,15]
[359843441,1746369040409,-400.0,0.00038904,15]
[359843444,1746369040419,-400.0,0.00038904,15]
[359843446,1746369040428,-400.0,0.00038904,2]
[359843448,1746369040437,-400.0,0.00038904,15]
[359843450,1746369040447,-400.0,0.00038904,15]
[359843452,1746369040457,-500.0,0.00038904,15]
[359843454,1746369040466,-309.48968384,0.00038904,15]
[359843456,1746369040475,-500.0,0.00038904,15]
[359843458,1746369040484,-500.0,0.00038904,15]
[359843460,1746369040494,-500.0,0.00038904,15]
[359843462,1746369040503,-500.0,0.00038904,15]
[359843464,1746369040513,-500.0,0.00038904,15]
[359843466,1746369040522,-400.0,0.00038904,15]
[359843468,1746369040532,-500.0,0.00038904,15]
[359843470,1746369040541,-400.0,0.00038904,15]
[359843472,1746369040552,-500.0,0.00038904,15]
[359843474,1746369040562,-400.0,0.00038904,15]
[359843476,1746369040571,-400.0,0.00038904,15]
[359843478,1746369040581,-400.0,0.00038904,15]
[359843480,1746369040594,-411.76,0.00038904,15]
[359843482,1746369040603,-400.0,0.00038904,15]
[359843485,1746369040614,-400.0,0.00038904,15]
[359843487,1746369040624,-400.0,0.00038904,15]
[359843489,1746369040633,-400.0,0.00038904,15]
[359843491,1746369040642,-400.0,0.00038904,15]
[359843492,1746369040652,-400.0,0.00038904,15]
[359843495,1746369040661,-400.0,0.00038904,15]
[359843497,1746369040670,-400.0,0.00038904,15]
[359843511,1746369040789,-400.0,0.00038904,15]
[359843513,1746369040800,-400.0,0.00038904,15]
[359843515,1746369040811,-400.0,0.00038904,15]
[359843517,1746369040823,-400.0,0.00038904,15]
[359843519,1746369040831,-400.0,0.00038904,15]
[359843521,1746369040841,-400.0,0.00038904,15]
[359843523,1746369040850,-400.0,0.00038904,15]
[359843525,1746369040860,-400.0,0.00038904,15]
[359843527,1746369040870,-346.27,0.00038904,15]
[359843529,1746369040879,-400.0,0.00038904,15]
[359843531,1746369040888,-400.0,0.00038904,15]
[359843533,1746369040898,-500.0,0.00038904,15]
[359843535,1746369040908,-400.0,0.00038904,15]
[359843537,1746369040917,-400.0,0.00038904,15]
[359843539,1746369040927,-543.81,0.00038904,15]
[359843541,1746369040936,-400.0,0.00038904,15]
[359843543,1746369040945,-400.0,0.00038904,15]
[359843545,1746369040954,-400.0,0.00038904,15]
[359843547,1746369040963,-400.0,0.00038904,15]
[359843549,1746369040972,-400.0,0.00038904,15]
[359843551,1746369040982,-400.0,0.00038904,15]
[359843553,1746369040991,-400.0,0.00038904,15]
[359843555,1746369041000,-400.0,0.00038904,15]
[359843557,1746369041010,-400.0,0.00038904,15]
[359843559,1746369041019,-400.0,0.00038904,15]
[359843561,1746369041028,-400.0,0.00038904,15]
[359843563,1746369041038,-400.0,0.00038904,15]
[359843565,1746369041047,-504.16894908,0.00038904,15]
[359843567,1746369041057,-447.12083743,0.00038904,15]
[359843569,1746369041067,-510.99737348,0.00038904,15]
[359843571,1746369041076,-503.29279151,0.00038904,15]
[359843573,1746369041085,-500.47142295,0.00038904,15]
[359843575,1746369041095,-400.0,0.00038904,15]
[359843577,1746369041104,-400.0,0.00038904,15]
[359843579,1746369041113,-400.0,0.00038904,15]
[359843581,1746369041123,-400.0,0.00038904,15]
[359843583,1746369041133,-400.0,0.00038904,15]
[359843586,1746369041143,-500.0,0.00038904,15]
[359843588,1746369041152,-400.0,0.00038904,15]
[359843590,1746369041162,-161.06,0.00038904,15]
[359843592,1746369041171,-400.0,0.00038904,15]
[359843594,1746369041181,-400.0,0.00038904,15]
[359843596,1746369041190,-400.0,0.00038904,15]
[359843598,1746369041199,-500.0,0.00038904,15]
[359843600,1746369041208,-400.0,0.00038904,15]
[359843602,1746369041217,-500.0,0.00038904,15]
[359843604,1746369041227,-400.0,0.00038904,15]
[359843606,1746369041236,-500.0,0.00038904,15]
[359843608,1746369041246,-400.0,0.00038904,15]
[359843610,1746369041255,-400.0,0.00038904,15]
[359843612,1746369041264,-400.0,0.00038904,15]
[359843614,1746369041273,-400.0,0.00038904,15]
[359843616,1746369041282,-400.0,0.00038904,15]
[359843618,1746369041292,-400.0,0.00038904,15]
[359843620,1746369041301,-500.0,0.00038904,15]
[359843622,1746369041310,-400.0,0.00038904,15]
[359843624,1746369041319,-498.42,0.00038904,15]
[359843626,1746369041328,-400.0,0.00038904,15]
[359843628,1746369041337,-500.0,0.00038904,15]
[359843630,1746369041346,-400.0,0.00038904,15]
[359843632,1746369041355,-517.71882896,0.00038904,15]
[359843634,1746369041364,-400.0,0.00038904,15]
[359843636,1746369041374,-500.0,0.00038904,15]
[359843638,1746369041383,-400.0,0.00038904,15]
[359843640,1746369041392,-400.0,0.00038904,15]
[359843642,1746369041401,-400.0,0.00038904,15]
[359843644,1746369041410,-474.37,0.00038904,15]
[359843646,1746369041419,-400.0,0.00038904,15]
[359843648,1746369041428,-400.0,0.00038904,15]
[359843650,1746369041437,-201.11559276,0.00038904,15]
[359843652,1746369041446,-400.0,0.00038904,15]
[359843654,1746369041455,-400.0,0.00038904,15]
[359843656,1746369041464,-400.0,0.00038904,15]
[359843658,1746369041473,-284.33,0.00038904,15]
[359843660,1746369041482,-500.0,0.00038904,15]
[359843662,1746369041492,-500.0,0.00038904,15]
[359843664,1746369041500,-257.77260435,0.00038904,15]
[359843666,1746369041509,-400.0,0.00038904,15]
[359843668,1746369041518,-411.65,0.00038904,15]
[359843670,1746369041528,-500.0,0.00038904,15]
[359843672,1746369041537,-400.0,0.00038904,15]
[359843674,1746369041546,-400.0,0.00038904,15]
[359843676,1746369041555,-367.39348328,0.00038904,5]
[359843678,1746369041564,-400.0,0.00038904,15]
[359843680,1746369041573,-501.19874312,0.00038904,15]
[359843682,1746369041581,-500.0,0.00038904,15]
[359843684,1746369041590,-493.16,0.00038904,15]
[359843686,1746369041599,-400.0,0.00038904,15]
[359843688,1746369041608,-400.0,0.00038904,15]
[359843690,1746369041618,-400.0,0.00038904,15]
[359843692,1746369041628,-400.0,0.00038904,15]
[359843694,1746369041637,-298.62,0.00038904,15]
[359843696,1746369041646,-400.0,0.00038904,15]
[359843698,1746369041655,-400.0,0.00038904,15]
[359843700,1746369041664,-400.0,0.00038904,15]
[359843702,1746369041673,-200.83534951,0.00038904,15]
[359843704,1746369041683,-504.7994108,0.00038904,15]
[359843706,1746369041691,-400.0,0.00038904,15]
[359843708,1746369041700,-977.02,0.00038904,15]
[359843710,1746369041709,-977.02,0.00038904,15]
[359843712,1746369041718,-977.02,0.00038904,15]
[359843714,1746369041727,-977.02,0.00038904,15]
[359843716,1746369041737,-977.02,0.00038904,15]
[359843718,1746369041746,-977.02,0.00038904,15]
[359843720,1746369041755,-977.02,0.00038904,15]
[359843722,1746369041764,-977.02,0.00038904,15]
[359843724,1746369041773,-977.02,0.00038904,15]
[359843726,1746369041783,-977.02,0.00038904,15]
[359843728,1746369041792,-977.02,0.00038904,15]
[359843730,1746369041801,-977.02,0.00038904,15]
[359843732,1746369041812,-977.02,0.00038904,15]
[359843733,1746369041822,-282.01505432,0.00038904,15]
[359843735,1746369041832,-977.02,0.00038904,15]
[359843738,1746369041845,-977.02,0.00038904,15]
[359843740,1746369041858,-977.02,0.00038904,15]
[359843743,1746369041872,-400.0,0.00038904,15]
[359843745,1746369041886,-977.02,0.00038904,15]
[359843748,1746369041897,-400.0,0.00038904,15]
[359843750,1746369041907,-400.0,0.00038904,15]
[359843752,1746369041918,-977.02,0.00038904,15]
[359843754,1746369041932,-400.0,0.00038904,15]
[359843757,1746369041943,-977.02,0.00038904,15]
[359843759,1746369041956,-400.0,0.00038904,15]
[359843761,1746369041969,-977.02,0.00038904,15]
[359843764,1746369041982,-400.0,0.00038904,15]
[359843766,1746369041994,-977.02,0.00038904,15]
[359843768,1746369042006,-400.0,0.00038904,15]
[359843771,1746369042019,-977.02,0.00038904,15]
[359843773,1746369042031,-400.0,0.00038904,15]
[359843776,1746369042044,-977.02,0.00038904,15]
[359843778,1746369042055,-500.0,0.00038904,15]
[359843780,1746369042067,-400.0,0.00038904,15]
[359843782,1746369042078,-977.14,0.00038904,15]
[359843784,1746369042089,-442.30475583,0.00038904,15]
[359843787,1746369042101,-400.0,0.00038904,15]
[359843789,1746369042113,-351.89463732,0.00038904,15]
[359843791,1746369042126,-400.0,0.00038904,15]
[359843794,1746369042139,-509.11,0.00038904,15]
[359843796,1746369042152,-500.0,0.00038904,15]
[359843798,1746369042164,-452.37,0.00038904,15]
[359843800,1746369042174,-515.3,0.00038904,15]
[359843802,1746369042185,-400.0,0.00038904,15]
[359843805,1746369042195,-400.0,0.00038904,15]
[359843808,1746369042207,-500.0,0.00038904,15]
[359843810,1746369042218,-183.34237573,0.00038904,15]
[359843812,1746369042229,-500.0,0.00038904,15]
[359843815,1746369042241,-400.0,0.00038904,15]
[359843820,1746369042252,-400.0,0.00038904,15]
[359843822,1746369042264,-393.81,0.00038904,15]
[359843824,1746369042275,-536.71112375,0.00038904,15]
[359843827,1746369042287,-500.0,0.00038904,15]
[359843829,1746369042300,-400.0,0.00038904,15]
[359843831,1746369042312,-500.0,0.00038904,15]
[359843834,1746369042324,-400.0,0.00038904,15]
[359843836,1746369042337,-400.0,0.00038904,15]
[359843838,1746369042348,-493.96,0.00038904,15]
[359843840,1746369042358,-400.0,0.00038904,15]
[359843843,1746369042368,-500.0,0.00038904,15]
[359843848,1746369042378,-400.0,0.00038904,15]
[359843850,1746369042388,-452.84,0.00038904,15]
[359843852,1746369042400,-400.0,0.00038904,15]
[359843854,1746369042411,-500.0,0.00038904,15]
[359843857,1746369042425,-500.0,0.00038904,15]